bitfinex/quotes_SOLUSD_20250811
["timestamp","ask_amount","ask_price","bid_price","bid_amount"]
[1754895038993,34.04401421,184.58,184.57,37.8]
[1754895039178,34.04401421,184.58,184.57,42.59716316]
[1754895039897,34.04401421,184.58,184.57,37.8]
[1754895040098,39.43117737,184.58,184.56,0.06]
[1754895040410,9.40117737,184.57,184.56,0.06]
[1754895040574,9.39894218,184.57,184.56,0.06]
[1754895041002,14.81694077,184.57,184.56,0.06]
[1754895041300,44.81694077,184.57,184.56,0.06]
[1754895041807,40.01977761,184.57,184.56,0.06]
[1754895041998,61.08724477,184.57,184.56,0.06]
[1754895042978,56.29008161,184.57,184.56,0.06]
[1754895043199,61.08724477,184.57,184.56,0.06]
[1754895043702,60.49724477,184.57,184.56,0.06]
[1754895043905,61.08724477,184.57,184.56,0.06]
[1754895045102,56.29008161,184.57,184.56,0.06]
[1754895045302,61.08724477,184.57,184.56,0.06]
[1754895046103,72.68724477,184.57,184.56,0.06]
[1754895047784,72.09724477,184.57,184.56,0.06]
[1754895047989,61.88208302,184.57,184.56,0.06]
[1754895048392,67.30008161,184.57,184.56,0.06]
[1754895049080,72.68724477,184.57,184.56,0.06]
[1754895050207,67.30008161,184.57,184.56,0.06]
[1754895050386,61.88208302,184.57,184.56,0.06]
[1754895050907,61.88208302,184.57,184.56,0.72]
[1754895051093,45.61177902,184.57,184.56,0.06]
[1754895051410,50.46894202,184.57,184.56,0.06]
[1754895052705,50.46894202,184.57,184.56,0.72]
[1754895052890,38.86894202,184.57,184.56,5.51716316]
[1754895053209,34.01177902,184.57,184.56,5.51716316]
[1754895053594,30.0,184.57,184.56,5.51716316]
[1754895053790,30.0,184.57,184.56,0.72]
[1754895053999,30.0,184.57,184.56,5.51716316]
[1754895055407,30.0,184.57,184.56,0.72]
[1754895055608,30.0,184.57,184.56,5.51716316]
[1754895056396,34.0062437,184.57,184.56,5.51716316]
[1754895056618,30.0,184.57,184.56,10.93545531]
[1754895056992,30.0,184.57,184.56,5.51716316]
[1754895057482,30.0,184.57,184.56,10.93545531]
[1754895059213,0.03,184.58,184.56,10.93545531]
[1754895059397,0.03,184.58,184.57,5.45716316]
[1754895059913,0.03,184.58,184.57,110.16337873]
[1754895060706,0.03,184.58,184.57,147.96337873]
[1754895061421,0.03,184.58,184.57,153.38137732]
[1754895063628,0.03,184.59,184.58,9.59432632]
[1754895063926,0.03,184.59,184.58,5.47716316]
[1754895064796,0.03,184.59,184.58,10.89486822]
[1754895067792,0.03,184.59,184.58,100.49486822]
[1754895068996,0.03,184.59,184.58,141.60108379]
[1754895076721,0.03,184.59,184.58,146.39824695]
[1754895077232,0.03,184.59,184.58,141.60108379]
[1754895077532,0.03,184.6,184.59,89.57]
[1754895077696,0.03,184.6,184.59,152.57228304]
[1754895077900,0.03,184.62,184.61,41.10621557]
[1754895078103,0.03,184.63,184.61,83.66337873]
[1754895078396,0.03,184.63,184.62,5.47716316]
[1754895079230,0.03,184.63,184.62,20.58337873]
[1754895079724,0.03,184.63,184.62,25.99990998]
[1754895081914,0.03,184.63,184.62,25.31990998]
[1754895083207,0.03,184.63,184.62,63.07990998]
[1754895083530,0.03,184.63,184.62,63.75990998]
[1754895087846,0.03,184.63,184.62,20.58337873]
[1754895088017,0.03,184.63,184.62,147.23337873]
[1754895088218,0.13,184.63,184.62,109.47337873]
[1754895088415,0.13,184.63,184.62,142.43621557]
[1754895088615,0.13,184.63,184.62,147.23337873]
[1754895088851,0.03,184.63,184.62,147.23337873]
[1754895089026,0.03,184.63,184.62,152.64990998]
[1754895089224,0.03,184.63,184.62,153.32990998]
[1754895093133,0.03,184.65,184.63,104.64621557]
[1754895093323,0.03,184.65,184.63,109.44337873]
[1754895093517,0.03,184.65,184.63,110.11337873]
[1754895094250,0.03,184.65,184.63,115.52961661]
[1754895095151,0.03,184.65,184.63,178.59961661]
[1754895096334,0.03,184.65,184.63,140.85961661]
[1754895096538,0.03,184.65,184.63,178.59961661]
[1754895097355,0.03,184.65,184.63,140.85961661]
[1754895097560,0.62,184.65,184.63,178.59961661]
[1754895097936,0.03,184.65,184.63,135.44337873]
[1754895098137,0.62,184.64,184.63,158.07716316]
[1754895098349,0.62,184.64,184.63,127.28]
[1754895098737,0.62,184.64,184.63,132.07716316]
[1754895099026,0.62,184.64,184.63,89.54]
[1754895099223,0.62,184.64,184.63,127.28]
[1754895099455,0.03,184.64,184.63,127.28]
[1754895099644,0.62,184.64,184.63,127.28]
[1754895100669,0.03,184.64,184.63,153.26961661]
[1754895101525,0.03,184.64,184.63,152.59961661]
[1754895101928,0.03,184.64,184.63,153.26961661]
[1754895106652,0.03,184.64,184.63,140.85961661]
[1754895106860,0.03,184.64,184.63,178.61961661]
[1754895107036,0.03,184.64,184.63,179.28961661]
[1754895110339,0.03,184.64,184.63,153.28961661]
[1754895120469,1e-08,184.65,184.64,15.10621557]
[1754895120670,0.03,184.67,184.66,41.10621557]
[1754895120973,0.03,184.68,184.67,19.90337873]
[1754895121143,0.03,184.68,184.67,109.44337873]
[1754895121338,0.03,184.68,184.67,110.16337873]
[1754895121534,0.03,184.68,184.67,115.57844344]
[1754895124756,0.03,184.68,184.67,115.57844344]
[1754895125844,0.03,184.69,184.68,19.90337873]
[1754895126142,0.03,184.7,184.68,58.36337873]
[1754895126341,0.03,184.7,184.69,31.51716316]
[1754895127055,0.03,184.7,184.69,121.05716316]
[1754895127566,0.03,184.7,184.69,126.47164147]
[1754895128075,0.03,184.7,184.69,141.57785704]
[1754895132683,0.03,184.7,184.69,136.78069388]
[1754895132980,0.03,184.7,184.69,141.57785704]
[1754895133144,0.03,184.7,184.69,140.85785704]
[1754895133674,0.03,184.7,184.69,141.57785704]
[1754895134148,0.03,184.7,184.69,140.85785704]
[1754895134762,0.03,184.7,184.69,141.57785704]
[1754895136278,0.03,184.74,184.73,45.90337873]
[1754895136570,0.03,184.74,184.73,83.64337873]
[1754895136777,0.03,184.74,184.73,173.90337873]
[1754895137175,0.03,184.74,184.73,84.36337873]
[1754895137476,0.03,184.74,184.73,83.64337873]
[1754895137652,0.03,184.74,184.73,89.77668463]
[1754895138256,0.03,184.74,184.73,179.31668463]
[1754895141359,0.03,184.74,184.73,178.59668463]
[1754895141559,0.03,184.74,184.73,173.79952147]
[1754895141880,0.03,184.74,184.73,178.59668463]
[1754895142471,0.03,184.74,184.73,179.31668463]
[1754895144188,0.03,184.74,184.73,174.51952147]
[1754895144354,0.03,184.74,184.73,179.31668463]
[1754895145155,0.03,184.74,184.73,173.79952147]
[1754895145357,0.03,184.74,184.73,178.59668463]
[1754895146875,0.62,184.74,184.73,110.05952147]
[1754895147074,0.03,184.74,184.73,152.57668463]
[1754895147286,0.03,184.74,184.73,153.29668463]
[1754895149588,0.03,184.74,184.73,148.49952147]
[1754895149758,0.03,184.74,184.73,147.77952147]
[1754895149960,0.03,184.74,184.73,178.57668463]
[1754895151166,0.03,184.74,184.73,173.77952147]
[1754895151403,0.03,184.74,184.73,178.57668463]
[1754895154000,0.62,184.74,184.73,158.6733059]
[1754895155192,0.03,184.74,184.73,158.6733059]
[1754895155558,0.03,184.74,184.73,163.47046906]
[1754895156673,0.03,184.74,184.73,153.26]
[1754895156892,0.62,184.74,184.73,153.26]
[1754895158004,0.62,184.74,184.73,158.6733059]
[1754895158293,0.62,184.74,184.73,153.26]
[1754895158977,0.03,184.74,184.73,158.6733059]
[1754895166887,0.03,184.74,184.73,153.26]
[1754895167495,0.03,184.74,184.73,127.26]
[1754895168294,0.03,184.74,184.73,37.72]
[1754895168696,0.03,184.74,184.73,43.8133059]
[1754895168894,0.03,184.74,184.73,48.61046906]
[1754895170215,0.03,184.74,184.73,43.8133059]
[1754895171079,0.03,184.74,184.73,63.71668463]
[1754895173206,0.03,184.74,184.73,89.71668463]
[1754895174216,0.03,184.74,184.73,179.31668463]
[1754895180800,0.03,184.74,184.73,173.83952147]
[1754895180999,0.62,184.74,184.73,127.32]
[1754895181212,0.03,184.74,184.73,132.7333059]
[1754895181902,0.03,184.74,184.73,127.32]
[1754895182115,0.62,184.74,184.73,127.32]
[1754895182921,0.03,184.74,184.73,132.7333059]
[1754895183131,0.03,184.74,184.73,138.19046906]
[1754895184104,0.03,184.74,184.73,133.3933059]
[1754895184726,0.03,184.74,184.73,132.7333059]
[1754895186915,0.62,184.74,184.73,89.6]
[1754895187120,0.62,184.74,184.73,127.32]
[1754895187426,0.03,184.74,184.73,127.32]
[1754895187625,4.82716316,184.74,184.73,127.32]
[1754895187828,4.82716316,184.74,184.73,89.6]
[1754895188027,4.82716316,184.74,184.73,127.32]
[1754895189027,9.43941322,184.74,184.73,127.32]
[1754895189207,4.64225006,184.74,184.73,127.32]
[1754895189399,8.84941322,184.74,184.73,127.32]
[1754895189803,4.05225006,184.74,184.73,127.32]
[1754895190415,0.03,184.74,184.73,127.32]
[1754895191422,4.05225006,184.74,184.73,127.32]
[1754895192005,4.05225006,184.74,184.73,37.72]
[1754895194131,4.05225006,184.74,184.73,43.7933059]
[1754895194431,0.03,184.74,184.73,43.7933059]
[1754895197918,0.03,184.74,184.73,133.3933059]
[1754895199819,0.03,184.74,184.73,132.7333059]
[1754895200024,0.62,184.74,184.73,127.32]
[1754895200215,9.44013876,184.74,184.7,89.66]
[1754895200417,4.0229756,184.73,184.71,37.72]
[1754895200649,4.79716316,184.72,184.71,37.72]
[1754895200826,8.82013876,184.72,184.71,37.72]
[1754895201128,8.8189381,184.72,184.71,37.72]
[1754895202035,9.4089381,184.72,184.71,37.72]
[1754895202944,4.61177494,184.72,184.71,37.72]
[1754895203116,9.4089381,184.72,184.71,37.72]
[1754895203441,39.4089381,184.72,184.7,37.78]
[1754895203641,9.4089381,184.71,184.7,37.78]
[1754895204027,8.8189381,184.71,184.7,37.78]
[1754895204523,34.79716316,184.71,184.7,37.78]
[1754895204726,38.81411527,184.71,184.7,37.78]
[1754895209841,34.79716316,184.71,184.7,38.47]
[1754895210145,30.0,184.71,184.7,37.78]
[1754895210321,34.79716316,184.71,184.7,37.78]
[1754895212342,30.0,184.71,184.7,37.78]
[1754895212520,30.0,184.71,184.7,43.88418516]
[1754895212722,30.0,184.71,184.7,133.48418516]
[1754895217041,0.03,184.74,184.7,48.68134832]
[1754895217245,8.84548326,184.74,184.71,0.69]
[1754895217422,4.82716316,184.74,184.72,37.72]
[1754895218444,4.82716316,184.74,184.73,0.69]
[1754895218627,8.84561338,184.74,184.73,0.69]
[1754895219025,8.84561338,184.74,184.72,37.72]
[1754895219223,0.03,184.74,184.72,43.13356229]
[1754895219450,0.03,184.74,184.73,0.69]
[1754895221339,0.03,184.74,184.73,6.1033059]
[1754895222650,0.03,184.74,184.73,10.90046906]
[1754895224729,0.03,184.74,184.73,100.50046906]
[1754895224932,0.03,184.74,184.73,115.60668463]
[1754895227324,0.03,184.78,184.76,26.0]
[1754895227526,0.03,184.78,184.77,42.51716316]
[1754895227850,0.03,184.78,184.77,58.31337873]
[1754895228853,0.03,184.78,184.77,63.72551273]
[1754895233334,0.03,184.78,184.77,153.32551273]
[1754895236464,0.03,184.8,184.78,15.10621557]
[1754895236758,0.03,184.8,184.79,83.60337873]
[1754895237129,0.03,184.8,184.79,84.29337873]
[1754895238484,0.03,184.8,184.79,89.70492697]
[1754895239380,0.03,184.8,184.79,179.30492697]
[1754895239679,0.03,184.8,184.79,173.81776381]
[1754895239981,0.03,184.8,184.79,178.61492697]
[1754895240175,0.03,184.8,184.79,136.11776381]
[1754895240379,0.03,184.8,184.79,153.3]
[1754895240575,0.03,184.8,184.79,174.50776381]
[1754895242781,0.03,184.8,184.79,179.30492697]
[1754895249790,0.1,184.82,184.79,179.30492697]
[1754895249971,0.1,184.82,184.79,178.61492697]
[1754895250171,0.1,184.82,184.81,15.10621557]
[1754895250504,0.1,184.82,184.81,63.01434134]
[1754895250670,0.1,184.82,184.81,63.70434134]
[1754895254174,0.1,184.82,184.81,153.30434134]
[1754895254587,0.1,184.82,184.81,147.81717818]
[1754895254970,0.1,184.82,184.81,153.30434134]
[1754895255775,0.1,184.82,184.81,148.50717818]
[1754895255985,0.1,184.82,184.81,153.30434134]
[1754895256698,0.1,184.82,184.81,148.50717818]
[1754895257010,0.1,184.82,184.81,153.30434134]
[1754895260305,0.1,184.82,184.81,113.87398816]
[1754895260514,0.1,184.82,184.81,151.55398816]
[1754895265299,0.1,184.82,184.81,150.86398816]
[1754895265897,0.1,184.82,184.81,142.38621557]
[1754895267293,0.69,184.82,184.81,142.38621557]
[1754895267701,0.69,184.82,184.81,127.28]
[1754895269407,0.1,184.82,184.81,127.28]
[1754895269792,0.1,184.82,184.81,127.95]
[1754895270210,0.1,184.82,184.81,133.36096261]
[1754895271696,0.1,184.82,184.81,151.53398816]
[1754895274431,0.1,184.82,184.81,153.2576779]
[1754895274719,0.1,184.82,184.81,148.46717818]
[1754895274929,0.1,184.82,184.81,153.2576779]
[1754895283935,0.1,184.84,184.83,19.89671529]
[1754895284112,0.1,184.84,184.83,147.07671529]
[1754895284305,0.1,184.84,184.83,147.74671529]
[1754895284700,0.1,184.84,184.83,142.95621557]
[1754895284917,0.1,184.84,184.83,147.74671529]
[1754895287612,1e-08,184.84,184.83,155.83304961]
[1754895289208,1e-08,184.84,184.83,172.10304961]
[1754895289628,0.03,184.88,184.87,15.10621557]
[1754895289823,0.03,184.88,184.87,142.25621556]
[1754895290603,0.03,184.88,184.87,147.66542202]
[1754895290807,0.62,184.88,184.87,147.66542202]
[1754895291009,0.03,184.88,184.87,147.66542202]
[1754895291533,0.03,184.88,184.87,148.33542202]
[1754895291720,0.03,184.88,184.87,147.66542202]
[1754895294225,0.03,184.88,184.87,148.33542202]
[1754895294541,0.03,184.88,184.87,151.40050291]
[1754895294730,0.03,184.88,184.87,148.33542202]
[1754895296533,0.03,184.88,184.87,147.66542202]
[1754895297859,0.03,184.88,184.87,142.25621556]
[1754895298545,0.03,184.88,184.87,147.66542202]
[1754895299250,0.03,184.88,184.87,151.40050291]
[1754895299636,0.03,184.88,184.87,148.33542202]
[1754895299829,0.03,184.88,184.87,147.66542202]
[1754895300350,0.03,184.88,184.86,3.77508089]
[1754895300351,0.62,184.88,184.86,15.10621557]
[1754895300532,0.03,184.88,184.87,37.66]
[1754895301623,0.62,184.88,184.87,37.66]
[1754895301824,3.68508089,184.88,184.84,15.10621557]
[1754895302022,3.65508089,184.87,184.85,37.66]
[1754895302249,5.38120825,184.87,184.85,37.66]
[1754895302452,0.59,184.87,184.85,37.66]
[1754895302625,5.38120825,184.87,184.85,37.66]
[1754895303839,0.59,184.87,184.85,37.66]
[1754895304038,5.38120825,184.87,184.85,37.66]
[1754895305561,0.13,184.88,184.85,37.66]
[1754895305760,8.80706881,184.87,184.85,37.66]
[1754895306056,4.79120825,184.87,184.85,37.66]
[1754895306260,0.03,184.88,184.85,43.77971463]
[1754895307151,4.82120825,184.88,184.85,43.77971463]
[1754895308729,0.03,184.88,184.85,43.77971463]
[1754895308925,4.04467684,184.88,184.85,43.77971463]
[1754895309163,0.03,184.88,184.85,43.77971463]
[1754895309743,4.04471951,184.88,184.85,43.77971463]
[1754895310131,0.03,184.88,184.85,43.77971463]
[1754895310327,0.03,184.88,184.85,132.66971463]
[1754895310547,0.03,184.88,184.86,0.71]
[1754895310753,4.04502791,184.88,184.87,37.66]
[1754895311057,30.03,184.88,184.87,37.66]
[1754895313342,30.03,184.88,184.87,38.37]
[1754895313538,30.03,184.88,184.87,63.67663028]
[1754895313754,30.03,184.88,184.87,53.47621557]
[1754895313939,30.03,184.88,184.87,58.17542203]
[1754895314146,30.03,184.88,184.87,58.88542203]
[1754895314763,0.03,184.88,184.87,58.88542203]
[1754895314937,0.03,184.88,184.87,53.47621557]
[1754895316037,0.03,184.88,184.87,52.76621557]
[1754895316355,0.03,184.88,184.87,142.36621557]
[1754895316736,0.03,184.88,184.87,143.07621557]
[1754895318040,0.03,184.88,184.87,148.48542203]
[1754895321370,0.03,184.88,184.87,142.36621557]
[1754895321677,4.82120825,184.88,184.87,37.66]
[1754895321974,4.05062171,184.88,184.87,37.66]
[1754895323665,4.05062171,184.88,184.87,38.37]
[1754895324043,0.03,184.88,184.87,38.37]
[1754895324243,0.03,184.88,184.87,58.88542203]
[1754895325046,0.03,184.88,184.87,148.48542203]
[1754895327856,0.03,184.88,184.87,143.07621557]
[1754895328874,0.03,184.88,184.87,148.48542203]
[1754895332681,0.03,184.88,184.87,143.07621557]
[1754895333179,0.03,184.88,184.87,148.48542203]
[1754895333775,0.03,184.88,184.87,143.07621557]
[1754895334285,0.03,184.88,184.87,148.48542203]
[1754895335556,0.03,184.88,184.87,110.82542203]
[1754895335762,0.03,184.88,184.87,148.48542203]
[1754895336881,0.03,184.88,184.87,58.88542203]
[1754895337779,0.03,184.88,184.87,53.47621557]
[1754895338287,0.03,184.88,184.87,58.88542203]
[1754895340385,0.03,184.88,184.87,148.48542203]
[1754895340761,0.03,184.88,184.87,151.55093148]
[1754895347797,0.03,184.88,184.87,110.82542203]
[1754895347980,0.03,184.88,184.87,148.50542203]
[1754895349088,0.03,184.88,184.87,151.57093148]
[1754895349683,0.03,184.88,184.87,167.84093148]
[1754895349889,0.03,184.88,184.87,148.50542203]
[1754895351699,0.03,184.88,184.87,104.70621557]
[1754895351908,7.69928436,184.88,184.84,89.66]
[1754895352217,4.60377491,184.87,184.85,37.68]
[1754895352509,4.60377491,184.86,184.85,52.78621557]
[1754895352712,4.02377491,184.86,184.85,52.78621557]
[1754895353400,3.64550945,184.86,184.85,52.78621557]
[1754895353714,7.66928436,184.86,184.85,52.78621557]
[1754895354283,9.39590292,184.86,184.85,52.78621557]
[1754895355109,39.39590292,184.86,184.85,52.78621557]
[1754895356681,39.39590292,184.86,184.85,37.68]
[1754895356913,44.805402,184.86,184.85,37.68]
[1754895357794,44.805402,184.86,184.85,127.28]
[1754895358209,44.805402,184.86,184.85,37.68]
[1754895358515,14.805402,184.86,184.85,37.68]
[1754895358707,44.79909193,184.86,184.85,37.68]
[1754895360600,44.79909193,184.86,184.84,0.06]
[1754895360911,9.39959285,184.85,184.84,37.74]
[1754895361208,39.39789639,184.85,184.84,37.74]
[1754895361520,26.0,184.82,184.81,0.06]
[1754895361719,26.0,184.82,184.74,0.06]
[1754895361720,26.0,184.77,184.74,0.06]
[1754895361915,26.0,184.77,184.72,0.06]
[1754895361916,4.79212801,184.75,184.72,0.06]
[1754895362121,4.79212801,184.73,184.72,0.06]
[1754895362295,8.80789639,184.73,184.72,0.06]
[1754895362494,4.79212801,184.73,184.72,0.06]
[1754895362691,8.79458819,184.73,184.72,0.06]
[1754895362893,4.79212801,184.73,184.72,0.06]
[1754895363102,4.79212801,184.73,184.72,37.76]
[1754895363595,34.79212801,184.73,184.72,37.76]
[1754895364605,40.20543391,184.73,184.72,37.76]
[1754895364915,40.67543391,184.73,184.72,37.76]
[1754895365608,40.67543391,184.73,184.72,0.06]
[1754895367416,42.84304491,184.73,184.72,0.06]
[1754895369917,32.167611,184.73,184.72,0.06]
[1754895370133,34.79212801,184.73,184.72,0.06]
[1754895370311,30.0,184.73,184.72,0.73]
[1754895370504,30.0,184.73,184.72,48.63572697]
[1754895370712,30.03,184.74,184.72,38.43]
[1754895371006,30.03,184.74,184.73,0.67]
[1754895371211,0.03,184.74,184.73,0.67]
[1754895372011,0.03,184.74,184.73,1.17]
[1754895372836,0.03,184.74,184.73,26.48164948]
[1754895377817,0.03,184.74,184.73,116.08164948]
[1754895385741,0.03,184.74,184.73,111.28952147]
[1754895385931,0.03,184.74,184.73,116.08164948]
[1754895396942,0.03,184.76,184.74,15.10621557]
[1754895397141,0.03,184.76,184.75,68.51212801]
[1754895397364,0.03,184.76,184.75,69.23212801]
[1754895397574,0.03,184.76,184.75,74.6448479]
[1754895397872,0.03,184.76,184.75,89.75106347]
[1754895398053,0.03,184.76,184.75,63.75106347]
[1754895399154,0.03,184.76,184.75,153.35106347]
[1754895405666,0.03,184.76,184.75,148.55893546]
[1754895405973,0.03,184.76,184.75,152.63106347]
[1754895407782,0.5,184.76,184.75,178.63106347]
[1754895408158,0.03,184.76,184.75,178.63106347]
[1754895408884,0.5,184.76,184.75,178.63106347]
[1754895409257,0.03,184.76,184.75,178.63106347]
[1754895412591,0.03,184.76,184.75,179.35106347]
[1754895413558,0.03,184.76,184.75,174.55893546]
[1754895413758,0.03,184.76,184.75,173.83893546]
[1754895414295,0.03,184.76,184.75,178.63106347]
[1754895420193,0.03,184.76,184.75,173.83893546]
[1754895420371,0.5,184.76,184.74,0.06]
[1754895420574,0.03,184.76,184.75,37.7]
[1754895421394,4.05405957,184.76,184.75,37.7]
[1754895421574,34.52405957,184.76,184.75,37.7]
[1754895422295,34.05405957,184.76,184.75,37.7]
[1754895423601,34.52405957,184.76,184.75,37.7]
[1754895425091,34.05405957,184.76,184.75,37.7]
[1754895425290,30.03,184.76,184.75,37.7]
[1754895425680,0.03,184.76,184.75,127.3]
[1754895427079,0.13,184.76,184.75,127.3]
[1754895428187,0.03,184.76,184.75,127.3]
[1754895429200,0.13,184.76,184.75,127.3]
[1754895429387,0.03,184.76,184.75,127.3]
[1754895429913,30.03,184.76,184.75,127.3]
[1754895430209,44.35538707,184.76,184.74,0.06]
[1754895430391,8.91282764,184.75,184.74,0.06]
[1754895430787,38.91282764,184.75,184.74,0.06]
[1754895431593,34.12069963,184.75,184.74,0.06]
[1754895432003,30.0,184.75,184.74,0.06]
[1754895432887,30.0,184.75,184.74,0.75]
[1754895433593,30.0,184.75,184.74,0.06]
[1754895433799,34.82212801,184.76,184.74,0.06]
[1754895434119,34.82212801,184.76,184.75,37.72]
[1754895434120,30.03,184.76,184.75,37.72]
[1754895434907,34.04599937,184.76,184.75,37.72]
[1754895435104,4.04599937,184.76,184.75,37.72]
[1754895435618,9.30812738,184.76,184.75,37.72]
[1754895435816,8.83812738,184.76,184.75,37.72]
[1754895436422,34.04599937,184.76,184.75,37.72]
[1754895437015,38.83812738,184.76,184.75,37.72]
[1754895437198,39.30812738,184.76,184.75,37.72]
[1754895438443,39.30621841,184.76,184.75,37.72]
[1754895438718,30.03,184.76,184.75,38.41]
[1754895439821,30.03,184.76,184.75,43.82271989]
[1754895440021,30.03,184.76,184.75,63.72106347]
[1754895440226,0.03,184.76,184.75,153.32106347]
[1754895442033,0.03,184.76,184.75,148.52893546]
[1754895442234,0.03,184.76,184.75,133.42271989]
[1754895442609,0.03,184.76,184.75,128.01]
[1754895442811,0.03,184.76,184.75,127.3]
[1754895443334,4.82212801,184.76,184.75,37.7]
[1754895443538,4.04488864,184.76,184.75,37.7]
[1754895444123,0.03,184.76,184.75,37.7]
[1754895444438,30.03,184.76,184.75,37.7]
[1754895444635,34.0444748,184.76,184.75,37.7]
[1754895444932,34.04417399,184.76,184.75,37.7]
[1754895446622,38.836302,184.76,184.75,37.7]
[1754895446824,39.306302,184.76,184.75,37.7]
[1754895447124,34.04417399,184.76,184.75,37.7]
[1754895447323,38.836302,184.76,184.75,37.7]
[1754895449830,34.04417399,184.76,184.75,37.7]
[1754895450147,38.836302,184.76,184.75,37.7]
[1754895452144,34.04417399,184.76,184.75,37.7]
[1754895452444,34.04417399,184.76,184.75,38.42]
[1754895453428,4.04417399,184.76,184.75,38.42]
[1754895453640,4.04417399,184.76,184.75,43.83271989]
[1754895453831,0.03,184.76,184.75,48.6248479]
[1754895458151,0.03,184.76,184.75,138.2248479]
[1754895459030,0.03,184.76,184.75,153.33106347]
[1754895459234,0.03,184.76,184.75,179.33106347]
[1754895460655,0.03,184.76,184.75,153.33106347]
[1754895461959,0.03,184.76,184.75,179.43106347]
[1754895464959,0.03,184.76,184.75,153.43106347]
[1754895469865,0.03,184.76,184.75,153.41106347]
[1754895471165,0.03,184.76,184.75,115.63106347]
[1754895471373,0.03,184.76,184.75,153.41106347]
[1754895471577,0.03,184.76,184.75,179.41106347]
[1754895473352,0.03,184.76,184.75,178.69106347]
[1754895473561,0.03,184.76,184.75,178.67106347]
[1754895473766,0.03,184.76,184.75,140.91106347]
[1754895474074,0.03,184.76,184.75,178.67106347]
[1754895474816,0.03,184.76,184.75,179.39106347]
[1754895477963,0.03,184.76,184.75,173.87893546]
[1754895478179,0.03,184.76,184.75,178.67106347]
[1754895478575,0.03,184.76,184.75,152.67106347]
[1754895479579,0.03,184.76,184.75,147.87893546]
[1754895479787,0.03,184.76,184.75,152.67106347]
[1754895480301,0.5,184.76,184.75,89.6]
[1754895480482,0.5,184.76,184.75,37.74]
[1754895480885,4.51103802,184.76,184.75,37.74]
[1754895481096,39.92346495,184.76,184.75,37.74]
[1754895481806,44.71559296,184.76,184.74,0.06]
[1754895482107,44.71559296,184.76,184.75,37.74]
[1754895482108,30.03,184.76,184.75,37.74]
[1754895482318,34.04032499,184.76,184.75,37.74]
[1754895482614,34.51032499,184.76,184.75,37.74]
[1754895483290,39.302453,184.76,184.75,37.74]
[1754895483994,39.302453,184.76,184.74,37.8]
[1754895484204,4.01032499,184.75,184.74,37.8]
[1754895484407,34.01032499,184.75,184.74,37.8]
[1754895485905,4.01032499,184.75,184.74,37.8]
[1754895487311,5.29212801,184.76,184.74,37.8]
[1754895488084,4.82212801,184.76,184.74,37.8]
[1754895488914,30.0,184.75,184.74,37.8]
[1754895490213,30.0,184.75,184.74,43.92301288]
[1754895490403,30.0,184.75,184.74,38.51]
[1754895492517,30.0,184.75,184.74,0.06]
[1754895492708,30.0,184.75,184.74,37.8]
[1754895493208,30.0,184.75,184.74,5.47301288]
[1754895493412,30.0,184.75,184.74,43.19301288]
[1754895493626,0.03,184.76,184.74,48.69514089]
[1754895493825,0.03,184.76,184.75,0.71]